Cogmind - Beta 14 @@@ ROGUE MODE // 2024.09.01 @ 12:48:11 Player: THN-L0C Result: Destroyed by AG-20907 with Assembled Focal Cannon Performance ------------- Evolutions (3) 1500 Regions Visited (12) 2400 Robots Destroyed (101) 505 Value Destroyed (2654) 2654 Prototype IDs (40) 800 Alien Tech Used (0) 0 Bonus (1346) 1346 TOTAL SCORE: 9205 Bonus ------- High Alert Combat Kills 46 Aligned with FarCom 300 Destroyed Z-Imprinter 1000 Cogmind --------- Core Integrity 0/700 Matter 300/300 Energy 100/100 System Corruption 1% Temperature Cool (12) Movement Hovering (180) Ox2 Location -7/Deep Caves Parts ------- > --- POWER (1) -------- Zionite Light DM Reactor > --- PROPULSION (2) --- Gravmag System > --- UTILITY (7) ------ Experimental Heat Sink Transmission Jammer Zionite Weapon Casing Zionite Weapon Casing Zionite Weapon Casing > --- WEAPON (3) ------- Zionite Laser-S Zionite Phaser-S Power Maul > --- INVENTORY (5) ---- Zionite Light DM Reactor Dirty Bomb Trap Dirty Bomb Trap Dirty Bomb Trap Dirty Bomb Trap Peak State ------------ > --- POWER ------------ Zionite Light DM Reactor > --- PROPULSION ------- Gravmag System Zionite Glidesys I > --- UTILITY ---------- Experimental Heat Sink Transmission Jammer Zionite Weapon Casing Zionite Weapon Casing Zionite Weapon Casing Zionite Heavy Carapace > --- WEAPON ----------- Zionite Laser-S Zionite Phaser-S Power Maul > --- INVENTORY -------- Zionite Light DM Reactor Zionite Light DM Reactor Zionite Light DM Reactor Zionite Laser-S Dirty Bomb Trap [Rating: 79] Favorites ----------- Power Neutrino Core Engine Improved Ion Engine Power Core Neutrino Core Reactor Zionite Light DM Reactor Propulsion Gravmag System Treads Light Treads Leg Titanium Leg Wheel Wheel Hover Unit Gravmag System Utility Large Storage Unit Device Improved Heat Sink Storage Large Storage Unit Processor Core Analyzer Protection Improved Utility Shielding Weapon Enhanced Autogun Energy Gun Zionite Laser-S Ballistic Gun Enhanced Autogun Ballistic Cannon Slug Cannon Launcher Rocket Launcher Special Weapon Plasma Cutter Impact Weapon Power Maul Slashing Weapon Katana Build | -11 -10 -10 -9 -9 -9 -8 -8 -7 -7 -7 -7 -7 ------- Run | Yrd Mat Min Mat Min Exi Min Mat Fac Low Low Zio Dee Slots Evolved 6 | . . . 2 . . . 2 2 . . . . Power . | . . . . . . . . . . . . . Propulsion . | . . . . . . . . . . . . . Utility 5 | . . . 2 . . . 1 2 . . . . Weapon 1 | . . . . . . . 1 . . . . . Parts Attached 160 | 7 11 8 33 2 . 1 17 20 1 4 5 51 Power 15 | 1 3 2 3 . . . 1 1 . 1 . 3 Engine 11 | 1 3 1 3 . . . 1 1 . . . 1 Core 2 | . . 1 . . . . . . . 1 . . Reactor 2 | . . . . . . . . . . . . 2 Propulsion 30 | 2 2 3 4 . . 1 5 3 . . . 10 Treads 11 | 2 2 3 4 . . . . . . . . . Leg 1 | . . . . . . . 1 . . . . . Wheel 3 | . . . . . . 1 2 . . . . . Hover 15 | . . . . . . . 2 3 . . . 10 Flight . | . . . . . . . . . . . . . Utility 68 | 2 1 1 16 . . . 4 12 . 2 2 28 Device 21 | 1 . . . . . . 1 4 . 2 2 11 Storage 7 | 1 1 . 3 . . . . . . . . 2 Processor 2 | . . . . . . . . 2 . . . . Hackware . | . . . . . . . . . . . . . Protection 38 | . . 1 13 . . . 3 6 . . . 15 Artifact . | . . . . . . . . . . . . . Weapon 47 | 2 5 2 10 2 . . 7 4 1 1 3 10 Energy Gun 4 | . . . . . . . . . . . . 4 Energy Cannon . | . . . . . . . . . . . . . Ballistic Gun 29 | 2 5 1 7 1 . . 5 3 1 1 1 2 Ballistic Cannon 2 | . . . . . . . . . . . . 2 Launcher 5 | . . . 2 1 . . 1 . . . . 1 Special Weapon 1 | . . . . . . . . . . . 1 . Impact Weapon 4 | . . 1 . . . . . 1 . . 1 1 Slashing Weapon 2 | . . . 1 . . . 1 . . . . . Piercing Weapon . | . . . . . . . . . . . . . Special Melee Weapon . | . . . . . . . . . . . . . Unidentified Prototypes 14 | . . . 2 . . . . 1 . . 1 10 Parts Lost 32 | . 1 1 3 1 . . . 2 . 2 . 22 Power 3 | . 1 . 1 . . . . . . . . 1 Propulsion 10 | . . 1 1 1 . . . . . . . 7 Utility 12 | . . . 1 . . . . 1 . 1 . 9 Weapon 7 | . . . . . . . . 1 . 1 . 5 Highest Loss Streak 13 | . 1 1 1 1 . . . 1 . 2 . 13 To Critical Strikes 1 | . . . . 1 . . . . . . . . Average Slot Usage (%) 94 | . 97 99 98 96 88 99 91 97 100 95 99 86 Engine 4 | . 12 12 6 11 11 11 9 7 7 3 . . Core 2 | . . 1 3 . . . . . . 3 7 1 Reactor 1 | . . . . . . . . . . . . 5 Treads 7 | . 27 27 21 18 11 11 3 . . . . . Hover 9 | . . . . . . . 9 15 15 15 15 14 Device 13 | . 14 . . . . . 2 12 15 15 22 22 Storage 7 | . 14 14 11 11 11 11 9 7 7 7 7 2 Processor 2 | . . . . . . . . 3 7 7 7 1 Protection 20 | . . 13 32 33 33 33 26 26 23 18 15 17 Energy Gun 1 | . . . . . . . . . . . . 6 Ballistic Gun 18 | . 28 26 21 21 22 22 26 21 23 22 17 6 Impact Weapon 2 | . . 1 . . . . . 1 . . 3 5 Peak Build Rating 79 | 7 11 14 19 19 19 20 37 52 52 56 59 79 Average Rating 42 | 5 8 12 17 18 18 19 32 46 51 52 55 66 On Entrance 27 | . 7 11 14 19 18 19 20 37 51 52 52 59 Naked Turns . | . . . . . . . . . . . . . Heaviest Build 88 | 12 30 38 62 40 40 40 54 70 59 66 61 88 Greatest Support 40 | 40 40 40 40 40 20 20 20 18 17 17 17 28 Greatest Overweight (x) 10 | 3 8 1 2 1 1 3 5 6 3 3 3 10 Average Overweight (x) 1 | . . . . . 1 2 3 2 3 2 3 1 Largest Inventory Capacity 20 | 8 15 15 20 15 15 15 15 15 15 15 15 15 Average Capacity 12 | 7 11 15 15 15 15 15 15 15 15 15 15 7 Most Carried 16 | 1 15 15 16 15 15 15 15 15 15 15 15 15 Average Carried 12 | . 7 14 14 15 15 15 14 14 14 14 14 6 Final Capacity 15 | 8 15 15 15 15 15 15 15 15 15 15 15 5 Final Carried 15 | 1 14 15 15 15 15 15 15 14 15 15 15 5 Class Distribution -------------------- 46% | Mutant 35% | Tank 16% | Scavenger-Mutant Dominant Class ---------------- Mutant | -10/Materials Mutant | -10/Mines Mutant | -9/Materials Scavenger-Mutant | -9/Mines Mutant | -9/Exiles Scavenger-Mutant | -8/Mines Tank | -8/Materials Tank | -7/Factory Tank | -7/Lower Caves Tank | -7/Lower Caves Mutant | -7/Zion Scavenger-Mutant | -7/Deep Caves Resources | -11 -10 -10 -9 -9 -9 -8 -8 -7 -7 -7 -7 -7 ----------- Run | Yrd Mat Min Mat Min Exi Min Mat Fac Low Low Zio Dee Matter Collected 6247 | 249 173 484 673 150 . 26 556 604 189 349 50 2744 Remotely . | . . . . . . . . . . . . . Salvage Created 3238 | 68 272 243 977 170 . 28 597 425 47 275 . 136 Parts 230 | 6 21 22 72 13 . 2 46 17 7 15 . 9 Haulers Intercepted . | . . . . . . . . . . . . . Recyclers Shooed 4 | 1 . 1 2 . . . . . . . . . Parts Field Recycled . | . . . . . . . . . . . . . Retrieved Matter . | . . . . . . . . . . . . . Parts Self-Destructed 27 | . . . . . . . . . 6 19 2 . Prevented . | . . . . . . . . . . . . . Kills | -11 -10 -10 -9 -9 -9 -8 -8 -7 -7 -7 -7 -7 ------- Run | Yrd Mat Min Mat Min Exi Min Mat Fac Low Low Zio Dee Combat Hostiles Destroyed 84 | . 9 9 29 7 . . 14 7 1 5 . 3 Melee 1 | . . 1 . . . . . . . . . . Guns 69 | . 9 8 24 3 . . 10 7 1 5 . 2 Cannons 1 | . . . . . . . . . . . . 1 AOE 13 | . . . 5 4 . . 4 . . . . . Classes Destroyed 14 | 1 3 2 5 . . . 1 1 . . . 1 Worker 4 | . . 2 . . . 1 1 . . . . . Builder 1 | . . . 1 . . . . . . . . . Tunneler 5 | 3 . 2 . . . . . . . . . . Recycler 3 | . 1 . . 1 . . 1 . . . . . Operator 2 | . . . 1 . . . . 1 . . . . Watcher 4 | . . . 2 . . . 2 . . . . . Swarmer 34 | . 7 3 10 7 . . 7 . . . . . Grunt 29 | . 2 4 13 . . . 5 3 . 2 . . Duelist 1 | . . . 1 . . . . . . . . . Sentry 10 | . . . 5 . . . 1 2 . 2 . . Hunter 1 | . . . . . . . 1 . . . . . Programmer 4 | . . . . . . . . 2 1 1 . . Z-Light 2 | . . . . . . . . . . . . 2 Assembled 2 | . . 2 . . . . . . . . . . Best Kill Streak 4 | 2 4 3 4 4 . 1 4 2 1 4 . 2 Combat Bots Only 4 | . 4 3 4 4 . . 4 2 1 4 . 2 Max Kills in Single Turn 4 | 1 1 2 3 4 . 1 2 1 1 1 . 1 Gunslinging . | . . . . . . . . . . . . . Exploded 4 | . . . 2 4 . . 2 . . . . . Melee 1 | . . 1 . . . . . . . . . . Uniques/NPCs Destroyed 1 | . . . . . . . . . . . . 1 Z-Imprinter (-7/Deep Caves) Combat | -11 -10 -10 -9 -9 -9 -8 -8 -7 -7 -7 -7 -7 -------- Run | Yrd Mat Min Mat Min Exi Min Mat Fac Low Low Zio Dee Hostile Shots Fired 614 | . 37 29 130 25 . . 68 89 2 77 . 157 Missed 198 | . 9 8 35 6 . . 21 32 . 31 . 56 Damage Taken 7301 | . 330 274 1235 166 . . 670 680 30 590 . 3326 Core 884 | . 29 30 89 23 . . 12 52 16 39 . 594 Absorbed by Shields . | . . . . . . . . . . . . . Redirected to Shielding 386 | . . . 19 4 . . 2 19 . 22 . 320 Regen/Repaired (Parts) 153 | . . . . . . . . 153 . . . . Core Remaining (%) 86 | 100 . 76 . . . 72 97 . . . . . Volleys Fired 258 | 5 26 22 70 12 . 2 46 38 1 15 . 21 Largest 3 | 2 2 2 2 2 . 1 3 3 3 3 . 2 Hottest 82 | 40 40 46 53 50 . 25 78 78 78 78 . 82 Shots Fired 558 | 10 52 44 130 23 . 2 102 110 3 45 . 37 Gun 537 | 10 52 44 127 22 . 2 99 110 3 45 . 23 Cannon 12 | . . . . . . . . . . . . 12 Launcher 9 | . . . 3 1 . . 3 . . . . 2 Special . | . . . . . . . . . . . . . Kinetic 546 | 10 52 44 127 22 . 2 99 110 3 45 . 32 Thermal 2 | . . . . . . . . . . . . 2 Explosive 9 | . . . 3 1 . . 3 . . . . 2 Electromagnetic . | . . . . . . . . . . . . . Phasic 1 | . . . . . . . . . . . . 1 Robot Hit Streak 20 | 7 5 6 20 4 . 1 14 18 5 16 . 7 Robot Miss Streak 8 | 1 3 5 6 6 . 1 8 3 2 3 . 6 Penetration Max . | . . . . . . . . . . . . . Secondary Targets 3 | . . 1 1 1 . . . . . . . . Max Gunslinging Chain 1 | . . 1 1 1 . . . . . . . . Shots Hit Robots 351 | 7 26 33 89 11 . 1 57 74 3 32 . 18 Core Hits 180 | 4 14 25 47 7 . 1 30 22 2 18 . 10 Critical Kills 2 | . . . . . . . 1 1 . . . . Critical Parts Destroyed 3 | . 1 . . 1 . . . . . . . 1 Critical Strikes 6 | . 1 . 1 1 . . 1 1 . . . 1 Destroy 6 | . 1 . 1 1 . . 1 1 . . . 1 Melee Attacks 36 | . . 11 3 . . . 3 9 . . 1 9 Impact 30 | . . 11 . . . . . 9 . . 1 9 Slashing 6 | . . . 3 . . . 3 . . . . . Piercing . | . . . . . . . . . . . . . Sneak Attacks . | . . . . . . . . . . . . . Combat Hostiles . | . . . . . . . . . . . . . Follow-up Attacks . | . . . . . . . . . . . . . Damage Inflicted 6866 | 85 276 621 1725 362 . 19 1279 1322 51 607 . 519 Guns 5651 | 85 274 443 1411 189 . 19 967 1303 51 607 . 302 Cannons 145 | . . . . . . . . . . . . 145 Explosions 794 | . . . 262 154 . . 306 . . . . 72 Melee 100 | . . 100 . . . . . . . . . . Ramming 176 | . 2 78 52 19 . . 6 19 . . . . Kinetic 5796 | 85 274 443 1411 189 . 19 967 1303 51 607 . 447 Thermal . | . . . . . . . . . . . . . Explosive 794 | . . . 262 154 . . 306 . . . . 72 Electromagnetic . | . . . . . . . . . . . . . Impact 100 | . . 100 . . . . . . . . . . Slashing . | . . . . . . . . . . . . . Piercing . | . . . . . . . . . . . . . Highest Corruption 1 | . . . . . . . . . . 1 1 1 Average Corruption 1 | . . . . . . . . . . 1 1 1 Corruption Purged . | . . . . . . . . . . . . . Corruption Blocked . | . . . . . . . . . . . . . Effects 13 | . . . . . . . . . . 1 1 11 Matter Fused 3 | . . . . . . . . . . . . 3 Heat Flow Errors 4 | . . . . . . . . . . 1 1 2 Energy Discharges 2 | . . . . . . . . . . . . 2 Data Loss (minor) 1 | . . . . . . . . . . . . 1 Misfires 3 | . . . . . . . . . . . . 3 Overload Shots . | . . . . . . . . . . . . . Overflow Damage 125 | . . 17 18 32 . . 41 . . . . 17 Projectiles 17 | . . . . . . . . . . . . 17 Explosions 89 | . . . 16 32 . . 41 . . . . . Melee 19 | . . 17 2 . . . . . . . . . Knockbacks 4 | . . 1 1 . . . . 1 . . . 1 Impact 3 | . . 1 1 . . . . 1 . . . . Kinetic 1 | . . . . . . . . . . . . 1 Secondary . | . . . . . . . . . . . . . Self-Inflicted Damage 45 | . . . . . . . 36 9 . . . . Shots 1 | . . . . . . . 1 . . . . . Rammed 27 | . 1 14 9 1 . . 1 1 . . . . Targets Rammed 29 | . 1 15 10 1 . . 1 1 . . . . Kicked . | . . . . . . . . . . . . . Crushed 2 | . . 1 1 . . . . . . . . . Highest Temperature 549 | . 6 27 75 92 . 9 236 549 12 117 110 251 Average Temperature 75 | . 4 12 21 44 . 9 80 168 9 56 55 60 Received Heat Transfer 1944 | . 48 93 384 . . . 171 228 . 132 . 888 Effects 11 | . . . . . . . . 11 . . . . Shutdowns 1 | . . . . . . . . 1 . . . . Energy Bleed 1 | . . . . . . . . 1 . . . . Interference 6 | . . . . . . . . 6 . . . . Matter Decay 1 | . . . . . . . . 1 . . . . Short Circuit 1 | . . . . . . . . 1 . . . . Damage (minor) 1 | . . . . . . . . 1 . . . . Siege Activations . | . . . . . . . . . . . . . Robots Corrupted 1 | . . . 1 . . . . . . . . . Combat Hostiles . | . . . . . . . . . . . . . Parts Fried 2 | . . . 2 . . . . . . . . . Impact Corruptions 2 | . . 1 1 . . . . . . . . . Robots Melted . | . . . . . . . . . . . . . Combat Hostiles . | . . . . . . . . . . . . . Parts Melted . | . . . . . . . . . . . . . Heat Transferred . | . . . . . . . . . . . . . Parts Sabotaged . | . . . . . . . . . . . . . Parts Stolen . | . . . . . . . . . . . . . Parts Stripped . | . . . . . . . . . . . . . Power Chain Reactions . | . . . . . . . . . . . . . Alert | -11 -10 -10 -9 -9 -9 -8 -8 -7 -7 -7 -7 -7 ------- Run | Yrd Mat Min Mat Min Exi Min Mat Fac Low Low Zio Dee Peak Influence 527 | 15 336 133 527 262 . 5 274 150 . . . . Initial 83 | . 9 13 29 83 . . 1 . . . . . Average 139 | 4 122 39 296 155 . 4 94 45 . . . . Maximum Alert Level 2 | . 1 . 2 1 . . 1 . . . . . Low Security (%) 74 | 100 79 100 29 72 . 100 93 100 . . . . Level 1 16 | . 20 . 40 27 . . 6 . . . . . Level 2 8 | . . . 29 . . . . . . . . . Level 3 . | . . . . . . . . . . . . . Level 4 . | . . . . . . . . . . . . . Level 5 . | . . . . . . . . . . . . . High Security . | . . . . . . . . . . . . . Max Security . | . . . . . . . . . . . . . Squads Dispatched 8 | . . . 2 . . . 4 2 . . . . Investigation . | . . . . . . . . . . . . . Extermination 2 | . . . . . . . . 2 . . . . Reinforcement 3 | . . . 2 . . . 1 . . . . . Assault . | . . . . . . . . . . . . . Garrison 3 | . . . . . . . 3 . . . . . Intercept . | . . . . . . . . . . . . . Searches Triggered . | . . . . . . . . . . . . . Construction Impeded . | . . . . . . . . . . . . . Haulers Reinforced . | . . . . . . . . . . . . . Active Scanning Responses . | . . . . . . . . . . . . . Cargo Convoy Interrupts . | . . . . . . . . . . . . . Stealth | -11 -10 -10 -9 -9 -9 -8 -8 -7 -7 -7 -7 -7 --------- Run | Yrd Mat Min Mat Min Exi Min Mat Fac Low Low Zio Dee Distress Signals 11 | . . . 8 . . . 3 . . . . . Communications Jammed . | . . . . . . . . . . . . . Distress Signals . | . . . . . . . . . . . . . Times Spotted 136 | . 20 10 47 7 . . 21 12 1 6 . 12 Peak Tracking Total 6 | . 6 2 5 4 . . 5 5 1 5 . 3 Tactical Retreats 13 | . 5 1 1 . . . 2 1 . . . 3 Traps | -11 -10 -10 -9 -9 -9 -8 -8 -7 -7 -7 -7 -7 ------- Run | Yrd Mat Min Mat Min Exi Min Mat Fac Low Low Zio Dee Traps Triggered 2 | . 1 . . . . . 1 . . . . . Indirectly . | . . . . . . . . . . . . . Trap Hack Attempts . | . . . . . . . . . . . . . Triggered . | . . . . . . . . . . . . . Disarmed . | . . . . . . . . . . . . . Reprogrammed . | . . . . . . . . . . . . . Reused 6 | . . . . . . . . . . . . 6 Traps Extracted . | . . . . . . . . . . . . . Installed 35 | . . 2 . . . . . . . . . 33 Triggered . | . . . . . . . . . . . . . Fabricated Traps 42 | . . . . . . . . . . . . 42 Most Traps Carried 6 | . . . . . . . . . . . . 6 Machines | -11 -10 -10 -9 -9 -9 -8 -8 -7 -7 -7 -7 -7 ---------- Run | Yrd Mat Min Mat Min Exi Min Mat Fac Low Low Zio Dee Machines Disabled 6 | . . . 1 1 . . 1 . . . 3 . Max in Single Turn 1 | . . . 1 1 . . 1 . . . 1 . Machines Repaired . | . . . . . . . . . . . . . Machines Dismantled 3 | . . . . . . . . . . . 3 . Machines Sabotaged . | . . . . . . . . . . . . . Overloaded Fab Kills . | . . . . . . . . . . . . . Hacking | -11 -10 -10 -9 -9 -9 -8 -8 -7 -7 -7 -7 -7 --------- Run | Yrd Mat Min Mat Min Exi Min Mat Fac Low Low Zio Dee Machines Accessed 27 | . 6 . 9 . 1 . 5 3 1 2 . . Terminals 22 | . 6 . 9 . . . 5 2 . . . . Fabricators . | . . . . . . . . . . . . . Repair Stations 1 | . . . . . . . . 1 . . . . Recycling Units . | . . . . . . . . . . . . . Scanalyzers . | . . . . . . . . . . . . . Garrison Access . | . . . . . . . . . . . . . Total Hacks 74 | . 15 . 26 . 1 . 20 5 1 6 . . Successful 49 | . 9 . 18 . 1 . 11 3 1 6 . . Failed 24 | . 6 . 7 . . . 9 2 . . . . Catastrophic 3 | . . . 1 . . . . 2 . . . . Database Lockouts 1 | . . . 1 . . . . . . . . . Manual 49 | . 15 . 16 . 1 . 14 3 . . . . Terminals 64 | . 15 . 26 . . . 20 3 . . . . Fabricators . | . . . . . . . . . . . . . Repair Stations 2 | . . . . . . . . 2 . . . . Recycling Units . | . . . . . . . . . . . . . Scanalyzers . | . . . . . . . . . . . . . Garrison Access . | . . . . . . . . . . . . . Terminal Hacks 23 | . 1 . 10 . 1 . 4 . 1 6 . . Record 5 | . . . . . . . . . . 5 . . Robot Analysis 4 | . 1 . 1 . . . 2 . . . . . Prototype ID Bank 1 | . . . 1 . . . . . . . . . Open Door 2 | . . . . . . . . . 1 1 . . Alert Level 1 | . . . 1 . . . . . . . . . Unreport Threat 2 | . . . 1 . . . 1 . . . . . Locate Traps 2 | . . . 2 . . . . . . . . . Registered Components 1 | . . . 1 . . . . . . . . . Registered Prototypes 1 | . . . 1 . . . . . . . . . Zone Layout 3 | . . . 2 . . . 1 . . . . . Derelict Proto ID Bank 1 | . . . . . 1 . . . . . . . Fabricator Hacks . | . . . . . . . . . . . . . Repair Station Hacks 2 | . . . . . . . . 2 . . . . Scan Component 1 | . . . . . . . . 1 . . . . Repair 1 | . . . . . . . . 1 . . . . Recycling Unit Hacks . | . . . . . . . . . . . . . Scanalyzer . | . . . . . . . . . . . . . Garrison Access Hacks . | . . . . . . . . . . . . . Unauthorized Hacks 24 | . 8 . 8 . . . 7 1 . . . . Terminals 24 | . 8 . 8 . . . 7 1 . . . . Botnet 8 | . 3 . 3 . . . 2 . . . . . Skim 16 | . 5 . 5 . . . 5 1 . . . . Fabricators . | . . . . . . . . . . . . . Repair Stations . | . . . . . . . . . . . . . Recycling Units . | . . . . . . . . . . . . . Scanalyzers . | . . . . . . . . . . . . . Garrison Access . | . . . . . . . . . . . . . Data Cores Recovered . | . . . . . . . . . . . . . Used . | . . . . . . . . . . . . . Hacking Detections 21 | . 5 . 8 . . . 5 3 . . . . Full Trace Events . | . . . . . . . . . . . . . Feedback Events . | . . . . . . . . . . . . . Feedback Blocked . | . . . . . . . . . . . . . Robot Schematics Acquired 3 | . . . . . . . . . . . 3 . Robots Built . | . . . . . . . . . . . . . Authchips . | . . . . . . . . . . . . . Time . | . . . . . . . . . . . . . Total Robot Build Rating . | . . . . . . . . . . . . . Part Schematics Acquired 16 | . . . . . . . . . . . 16 . Parts Built . | . . . . . . . . . . . . . Authchips . | . . . . . . . . . . . . . Time . | . . . . . . . . . . . . . Total Part Build Rating . | . . . . . . . . . . . . . Parts Repaired 1 | . . . . . . . . 1 . . . . Time 60 | . . . . . . . . 60 . . . . Parts Recycled . | . . . . . . . . . . . . . Recycled Matter . | . . . . . . . . . . . . . Retrieved Matter . | . . . . . . . . . . . . . Retrieved Components . | . . . . . . . . . . . . . Parts Scanalyzed . | . . . . . . . . . . . . . Part Schematics Acquired . | . . . . . . . . . . . . . Parts Damaged . | . . . . . . . . . . . . . Bothacking | -11 -10 -10 -9 -9 -9 -8 -8 -7 -7 -7 -7 -7 ------------ Run | Yrd Mat Min Mat Min Exi Min Mat Fac Low Low Zio Dee Used RIF Installer . | . . . . . . . . . . . . . Robots Hacked . | . . . . . . . . . . . . . Non-combat . | . . . . . . . . . . . . . Combat . | . . . . . . . . . . . . . Robot Hacks Applied . | . . . . . . . . . . . . . Relay Couplers Released . | . . . . . . . . . . . . . Fabnet Peak Effective % . | . . . . . . . . . . . . . Robots Rewired . | . . . . . . . . . . . . . Allies Hacked . | . . . . . . . . . . . . . Hacks Repelled . | . . . . . . . . . . . . . Allies | -11 -10 -10 -9 -9 -9 -8 -8 -7 -7 -7 -7 -7 -------- Run | Yrd Mat Min Mat Min Exi Min Mat Fac Low Low Zio Dee Total Allies . | . . . . . . . . . . . . . Largest Group . | . . . . . . . . . . . . . Highest-Rated Group . | . . . . . . . . . . . . . Highest-Rated Ally . | . . . . . . . . . . . . . Total Orders . | . . . . . . . . . . . . . Ally Attacks . | . . . . . . . . . . . . . Total Damage . | . . . . . . . . . . . . . Kills . | . . . . . . . . . . . . . Allies Corrupted . | . . . . . . . . . . . . . Allies Melted . | . . . . . . . . . . . . . Intel | -11 -10 -10 -9 -9 -9 -8 -8 -7 -7 -7 -7 -7 ------- Run | Yrd Mat Min Mat Min Exi Min Mat Fac Low Low Zio Dee Robot Analysis Total 4 | . 1 . 1 . . . 2 . . . . . Derelict Logs Recovered 3 | . . 1 . 1 . . . . . . 1 . Drone Launches . | . . . . . . . . . . . . . Drone Recoveries . | . . . . . . . . . . . . . Exploration | -11 -10 -10 -9 -9 -9 -8 -8 -7 -7 -7 -7 -7 ------------- Run | Yrd Mat Min Mat Min Exi Min Mat Fac Low Low Zio Dee Turns Passed 19299 | 119 1172 1483 2514 193 590 127 1276 1475 1042 1084 3117 5107 Spaces Moved 9012 | 61 503 823 992 90 246 96 492 541 449 451 1307 2961 Core 53 | 7 1 . . . . . . . . . . 45 Treads 2712 | 54 502 823 992 90 246 3 2 . . . . . Legs . | . . . . . . . . . . . . . Wheels 393 | . . . . . . 93 300 . . . . . Hover 5854 | . . . . . . . 190 541 449 451 1307 2916 Flight . | . . . . . . . . . . . . . Fastest Speed 50 | 50 160 160 160 160 240 125 140 176 231 171 231 56 Average Speed 181 | 150 160 161 218 179 240 128 159 231 231 230 231 132 Slowest Speed 650 | 200 450 240 320 240 240 240 320 420 231 231 231 650 Overloaded Moves . | . . . . . . . . . . . . . Propulsion Burnouts . | . . . . . . . . . . . . . Robots Hopped . | . . . . . . . . . . . . . Cave-ins Triggered . | . . . . . . . . . . . . . Exploration Rate (%) 55 | 3 91 102 68 26 61 23 42 12 68 65 84 81 Regions Visited 12 Branch Regions 8 Pre-discovered Areas 14 | . 1 1 4 1 . . 3 . . 1 3 . Known Exits Taken 5 | . . 1 1 . . 1 1 1 . . . . Unknown Exits Taken 7 | 1 1 . . 1 1 . . . 1 1 1 . Scrap Searched 7 | . . 1 . . . . . . 1 1 4 . Spaces Dug 16 | . . . 3 . . . 3 1 . . . 9 Terrain Destroyed 86 | . . . 34 9 . . 19 1 . . . 23 Melee 16 | . . . 3 . . . 3 1 . . . 9 Projectile 2 | . . . . . . . . . . . . 2 AOE 68 | . . . 31 9 . . 16 . . . . 12 Terrain Rammed . | . . . . . . . . . . . . . Walls Destroyed . | . . . . . . . . . . . . . Machines Disabled . | . . . . . . . . . . . . . Actions | -11 -10 -10 -9 -9 -9 -8 -8 -7 -7 -7 -7 -7 --------- Run | Yrd Mat Min Mat Min Exi Min Mat Fac Low Low Zio Dee Total 11504 | 76 816 903 1212 107 247 98 939 702 453 476 1353 4122 Wait 1704 | 3 260 16 61 3 . . 350 77 . 7 . 927 Move 9000 | 60 502 822 991 89 245 95 491 540 448 450 1306 2961 Hop . | . . . . . . . . . . . . . Pick Up 108 | 1 11 2 15 . 1 . 13 8 2 . 7 48 Fast Attach 43 | 7 4 1 4 . . 1 1 2 . . . 23 Attach 30 | . . . 2 . . . 2 4 . 1 2 19 Detach 5 | . . . . . . . . . . . . 5 Swap 87 | . 7 7 27 2 . . 14 14 1 3 3 9 Drop 142 | . 5 5 29 . 1 . 18 9 1 . 7 67 Fire 258 | 5 26 22 70 12 . 2 46 38 1 15 . 21 Melee 36 | . . 11 3 . . . 3 9 . . 1 9 Ram 1 | . . . . . . . . 1 . . . . Kick . | . . . . . . . . . . . . . Crush 28 | . 1 15 10 1 . . 1 . . . . . Escape Stasis . | . . . . . . . . . . . . . Rewire . | . . . . . . . . . . . . . Trap 35 | . . 2 . . . . . . . . . 33 Miscellaneous 27 | . . . . . . . . . . . 27 . Route ------- -11/Scrapyard -10/Materials (discovered 6 exits: *Mat x3 / [*Min x2] / Sub) -10/Mines (discovered 3 exits: *Mat x2 / *Sub) -9/Materials (discovered 4 exits: *Mat x3 / *Min) -9/Mines -9/Exiles (discovered 2 exits: [*Min x2]) -8/Mines -8/Materials (discovered 3 exits: *Fac x3) -7/Factory (discovered 3 exits: *Fac / Sto / *Low) -7/Lower Caves -7/Lower Caves (discovered 2 exits: *Fac / [*Zio]) -7/Zion (discovered 2 exits: [*Dee] / [*Pro]) -7/Deep Caves (discovered 1 exit: [*Pro]) History --------- Turn | Location | Event 7 | -11/Scrapyard | Discovered new exit (range 16) 120 | -11/Scrapyard | Entered Materials 303 | -10/Materials | Build established: Mutant 393 | -10/Materials | Discovered new exit (range 4) 445 | -10/Materials | Discovered new exit (range 15) 559 | -10/Materials | Discovered new exit (range 12) 658 | -10/Materials | Discovered new exit (range 16) 825 | -10/Materials | Discovered new exit (range 13) 896 | -10/Materials | Learned location of 1 exit from Storage 955 | -10/Materials | Loaded intel: 1 repair station location 1006 | -10/Materials | Identified exit to Subcaves 1047 | -10/Materials | Learned location of Mines (-8) 1103 | -10/Materials | Learned 4 Subcaves zone layouts 1134 | -10/Materials | Identified exit to Materials 1228 | -10/Materials | Learned Storage emergency access door positions 1292 | -10/Materials | Entered Mines 1301 | -10/Mines | Met a Derelict bent on vengeance 1849 | -10/Mines | Excavation squad dispatched 1849 | -10/Mines | A large section of the Mines collapsed 1995 | -10/Mines | Joined a pair of Derelicts in attacking an 0b10 outpost 2008 | -10/Mines | Learned location of Zion (-7) 2075 | -10/Mines | Found a hidden stash of uninstalled traps 2767 | -10/Mines | Discovered exit to Subcaves (range 10) 2775 | -10/Mines | Entered Materials 2775 | -9/Materials | Evolved 2 slots: Utility x2 2776 | -9/Materials | Identified exit to Materials 3872 | -9/Materials | Discovered exit to Materials (range 13) 4101 | -9/Materials | Identified exit to Mines 4243 | -9/Materials | Learned Storage emergency access door positions 4498 | -9/Materials | Central database locked down 5289 | -9/Materials | Entered Mines 5356 | -9/Mines | Build established: Scavenger-Mutant 5468 | -9/Mines | Deemed a non-threat by the Exiles lab entrance 5470 | -9/Mines | Discovered new exit (range 5) 5482 | -9/Mines | Entered Exiles 5518 | -9/Exiles | Discovered new exit (range 15) 5547 | -9/Exiles | Met 8R-AWN 5583 | -9/Exiles | Met EX-HEX 5646 | -9/Exiles | Met EX-BIN 5674 | -9/Exiles | Aligned with FarCom system 5677 | -9/Exiles | Given EX-Vault access code 5718 | -9/Exiles | Build established: Mutant 5734 | -9/Exiles | Opened EX-Vault 5749 | -9/Exiles | Found Cloak of Protection 5801 | -9/Exiles | Warned to stay clear of 0b10 Research branches 5885 | -9/Exiles | Met EX-DEC 6043 | -9/Exiles | Discovered new exit (range 14) 6072 | -9/Exiles | Left Exiles lab with Cloak of Protection 6072 | -9/Exiles | Entered Mines 6123 | -8/Mines | Discovered exit to Materials (range 3) 6199 | -8/Mines | Entered Materials 6199 | -8/Materials | Evolved 2 slots: Utility x1, Weapon x1 6384 | -8/Materials | Garrison activated, responded to threat 6740 | -8/Materials | Build established: Tank 7107 | -8/Materials | Discovered new exit (range 5) 7245 | -8/Materials | Identified exit to Factory 7289 | -8/Materials | Learned location of Recycling (-7) 7346 | -8/Materials | Learned Factory security intel 7358 | -8/Materials | Learned Storage security intel 7378 | -8/Materials | Learned Factory security intel 7408 | -8/Materials | Learned location of Extension (-5) 7448 | -8/Materials | Learned 4 Recycling zone layouts 7475 | -8/Materials | Entered Factory 7475 | -7/Factory | Evolved 2 slots: Utility x2 7476 | -7/Factory | Identified exit to Storage 8051 | -7/Factory | Discovered new exit (range 9) 8171 | -7/Factory | Repaired Enh. Autogun 8573 | -7/Factory | Identified exit to Factory 8810 | -7/Factory | Discovered new exit (range 3) 8815 | -7/Factory | Identified exit to Lower Caves 8950 | -7/Factory | Entered Lower Caves 9497 | -7/Lower Caves | Encountered a Warlord checkpoint 9586 | -7/Lower Caves | Spotted B-75 Beast 9755 | -7/Lower Caves | Discovered new exit (range 8) 9992 | -7/Lower Caves | Entered another Lower Caves area 10159 | -7/Lower Caves | Attracted the attention of an 0b10 checkpoint 10259 | -7/Lower Caves | Discovered exit to Factory (range 12) 10526 | -7/Lower Caves | Learned Armory trap positions 10526 | -7/Lower Caves | Learned Extension security intel 10526 | -7/Lower Caves | Learned Extension terminal intel 10916 | -7/Lower Caves | Discovered new exit (range 9) 11076 | -7/Lower Caves | Entered Zion 11162 | -7/Zion | System corruption cleaned by Quarantine Array 11304 | -7/Zion | Found Prototype Device 11513 | -7/Zion | Discovered new exit (range 15) 11830 | -7/Zion | Learned location of Quarantine (-3) 12113 | -7/Zion | Build established: Mutant 12368 | -7/Zion | Found Prototype Device 12582 | -7/Zion | Learned Factory emergency access door positions 12744 | -7/Zion | Learned location of Warlord (-5) 13507 | -7/Zion | Discovered new exit (range 9) 13573 | -7/Zion | Saw the warning signs outside the Deep Caves entrance 13781 | -7/Zion | Build established: Tank 13952 | -7/Zion | Identified Mobile Refinery Mk. CCLXVII 14193 | -7/Zion | Entered Deep Caves 14442 | -7/Deep Caves | Identified Bomb Factory No. 2 15160 | -7/Deep Caves | Attacked by Z-Imprinter 15224 | -7/Deep Caves | Core integrity fell below 50% 15233 | -7/Deep Caves | Destroyed Z-Imprinter 15254 | -7/Deep Caves | Lost 13 parts (1p2n5u5w) 15257 | -7/Deep Caves | Found Prototype Protection 15257 | -7/Deep Caves | Identified Zio. Weapon Casing 15548 | -7/Deep Caves | Build established: Scavenger-Mutant 15687 | -7/Deep Caves | Found Zio. Weapon Casing 16514 | -7/Deep Caves | Z-Facility disabled 17704 | -7/Deep Caves | Core integrity fell below 20% 17727 | -7/Deep Caves | Found Zio. Weapon Casing 17740 | -7/Deep Caves | Lost 4 parts (2n2u) 17761 | -7/Deep Caves | Found Prototype Protection 17761 | -7/Deep Caves | Identified Zio. Heavy Carapace 17791 | -7/Deep Caves | Found Zio. Weapon Casing 18065 | -7/Deep Caves | Build established: Mutant 18117 | -7/Deep Caves | Discovered new exit (range 7) 19287 | -7/Deep Caves | Spotted AG-20907 19300 | -7/Deep Caves | Destroyed by AG-20907 with Assembled Focal Cannon Last Messages --------------- 18946_ Acquired Zio. Weapon Casing. 18963_ Dropped Zio. Light DM Reactor. 18966_ Acquired Zio. Light DM Reactor. 18967_ Dropped Zio. Weapon Casing. 18968_ Acquired Dirty Bomb Trap. 19015_ System corrupted: Matter fused (-10). 19081_ Dropped Dirty Bomb Trap. 19081_ Installed Dirty Bomb Trap. 19083_ Dropped Dirty Bomb Trap. 19084_ Installed Dirty Bomb Trap. 19087_ Dropped Dirty Bomb Trap. 19088_ Installed Dirty Bomb Trap. 19178_ Acquired 52 matter. 19181_ Acquired Dirty Bomb Trap. 19188_ System corrupted: Heat flow error (+242). 19241_ System corrupted: Energy discharge (-32). 19288_ AG-20907: "DSI9AT1D G8OHIBQ29FWG 26R186 QD12WHW8W33 TDK1 81FTS" 19290_ 9F-YFE(g) destroyed. 19293_ Zio. Heavy Carapace destroyed. 19293_ Zio. Glidesys I destroyed. Map ----- +----------------------------------------------------+ | ??????????????????????????????# ##?## | | ??????????????????????????????# #???# | | ??????????????????????????????# ##??# # | | ?????????????????????????????## ##?## ## | | ?????????????????????????????# ######## | | ?????????????????????????????# ##??## | | ?????????????????????????????# #### | | ?????????????????????????????## ## ## | | ???????????????? #???????????###### ## | | ?????????????? ????????????????## ### | | ??????????? ?????????#######?###?# | | ????????? [ #????????# #?????## | | ??????? = ##???????# #??????#### | | ???????[ == #???????## ##?????????## | | ????? [ = #????????# ##??????????## | | ????? ! #???????## ##??????????## | | ???? #???????# ##??????????# | | ???? ! ! ! #??????## #####?????## | | ??? #???#### ##???## | | ??? * * #??## #??## | | ??? = * ##?# ^## #### | | ?? * = #?### ^^####### ## | | ?? ! ! #???## #????## | | ? #???## ##???# | | ? % ##### ##??## ### ## | | ? ^^^ @ #???###?######## | | ??" ! #??????????????# | | ? = ##??#####?????## | | ?? h ## #### ###???# | | ?? ## ##?# | | ??? #### #?# | | ??? # # #??## #?## | | ??? #### ## ## ##???## ### ##??### | | ???? #????# ?# ?###?????## ##?## ##?????## | | ???? ??????#??# ??????????########????####???????? | | ???????????????#?????????????????????????????????? | | | | | | | | | | | | | | | | | | | | | | | | | | | | | +----------------------------------------------------+ Best States ------------- Heat Dissipation 60 Energy Generation 27 Energy Capacity 1300 Matter Stores 300 Matter Capacity 300 Sight Range 16 Terrain Scan Range 16 Terrain Scan Density 10 Jamming Range 12 Cloak Strength 5 Armor Coverage 1200 Core Shielding 20 Utility Shielding 66 Weapon Shielding 100 Evasion (%) 53 Core Analysis 6 Recoil Reduction 2 Item Schematics ----------------- Lrn. Phase Cannon | -7/Zion | Archive Adv. ECM Suite | -7/Zion | Archive Nuclear Pulse Thruster | -7/Zion | Archive Imp. Field Recycling Unit | -7/Zion | Archive Thermal Shield | -7/Zion | Archive Hvy. Laser | -7/Zion | Archive Imp. Medium Treads | -7/Zion | Archive Med. Reactive Plating | -7/Zion | Archive Field Propulsion Drive | -7/Zion | Archive Imp. Plasma Cutter | -7/Zion | Archive Energy Filter | -7/Zion | Archive Imp. Actuator Array | -7/Zion | Archive Drone Bay | -7/Zion | Archive Arc Projector | -7/Zion | Archive Weapon Cycler | -7/Zion | Archive Matter Compressor | -7/Zion | Archive Robot Schematics ------------------ R-06 Scavenger | -7/Zion | Archive T-07 Excavator | -7/Zion | Archive S-27 Virus | -7/Zion | Archive Fabricated ------------ Nothing Alien Tech Used ----------------- None Achievements -------------- None Challenges ------------ None Game ------ Seed CannonArcDrive Manual? 0 Play Time 01:39:46 Cumulative 179.4 hours Start 2024.09.01 @ 11:02:01 End 2024.09.01 @ 12:48:11 Sessions 1 Manual Loads 0 Difficulty Rogue Special Mode None Game No. 150 Rogue 150 Adventurer 0 Explorer 0 Win Type - Total 1 Types 0/0/0/1/0/0/0/0/0 Lore% 62 Gallery% 71 Achievement% 52 Wizard Run 0 Options --------- Layout 2 ASCII 0 Keyboard 1 Movement Vi Keybinds 0 Fullscreen 1 Font 32/SmallcapsGlow Map View 77x44 Zoom Use 0% Tactical HUD 1 Map Filters NONE Filters NONE Steam 1 RUN: e0c9e3ff-05a8-45bb-87ea-e6710fa2906d